[Event "Torneo Nuevo Centro. Jornada 11"]
[Site "Chess.com"]
[Date "2020.08.28"]
[Round "1"]
[White "Ursariu, Nikolas Victor"]
[Black "Yuste Valenzuela, Alejandro"]
[Result "0-1"]
[WhiteElo "1165"]
[BlackElo "1875"]
[TimeControl "180+2"]
[EndTime "10:38:54 PDT"]
[Termination "Victoria de alejandrito290 por jaque mate"]

1. e4 {[%clk 0:02:59.1]} 1... c5 {[%clk 0:02:59.5]} 2. Nf3 {[%clk 0:02:59.7]}
2... d6 {[%clk 0:03:00.2]} 3. Nc3 {[%clk 0:03:00.4]} 3... Nf6 {[%clk 0:02:59.9]}
4. Bc4 {[%clk 0:03:01.2]} 4... g6 {[%clk 0:02:59.9]} 5. O-O {[%clk 0:02:58.8]}
5... Bg7 {[%clk 0:03:00.4]} 6. d3 {[%clk 0:03:00]} 6... O-O {[%clk 0:03:01]} 7.
Bf4 {[%clk 0:02:56.6]} 7... Nc6 {[%clk 0:03:01.6]} 8. Re1 {[%clk 0:02:50.8]}
8... e5 {[%clk 0:02:46.6]} 9. Bg3 {[%clk 0:02:45.8]} 9... Bg4 {[%clk 0:02:31.5]}
10. h3 {[%clk 0:02:40.6]} 10... Bh5 {[%clk 0:02:31.4]} 11. Bh4 {[%clk
0:02:34.9]} 11... Bxf3 {[%clk 0:02:30.6]} 12. Qxf3 {[%clk 0:02:33.3]} 12... Nd4
{[%clk 0:02:30.8]} 13. Qe3 {[%clk 0:02:29.2]} 13... Nxc2 {[%clk 0:02:24.9]} 14.
Qc1 {[%clk 0:02:27.7]} 14... Nxe1 {[%clk 0:02:17.8]} 15. Qxe1 {[%clk 0:02:27.8]}
15... Qd7 {[%clk 0:01:58.5]} 16. Qe3 {[%clk 0:02:22.4]} 16... a6 {[%clk
0:01:53.4]} 17. Qf3 {[%clk 0:02:20.2]} 17... Nh5 {[%clk 0:01:32.4]} 18. g4
{[%clk 0:02:14.5]} 18... Nf4 {[%clk 0:01:29.5]} 19. Bg3 {[%clk 0:02:03.5]} 19...
b5 {[%clk 0:01:22.1]} 20. Bb3 {[%clk 0:02:00.5]} 20... b4 {[%clk 0:01:11.2]} 21.
Nd1 {[%clk 0:01:54.5]} 21... Ne6 {[%clk 0:00:47.3]} 22. Ne3 {[%clk 0:01:46.8]}
22... Nd4 {[%clk 0:00:47.9]} 23. Qd1 {[%clk 0:01:45.4]} 23... Nxb3 {[%clk
0:00:48.1]} 24. Qxb3 {[%clk 0:01:45.3]} 24... a5 {[%clk 0:00:46.5]} 25. Nd5
{[%clk 0:01:35.6]} 25... a4 {[%clk 0:00:47.2]} 26. Qc2 {[%clk 0:01:29.1]} 26...
Rab8 {[%clk 0:00:43.9]} 27. Re1 {[%clk 0:01:16.3]} 27... Qb7 {[%clk 0:00:42.6]}
28. Rb1 {[%clk 0:01:14.9]} 28... f5 {[%clk 0:00:42.5]} 29. gxf5 {[%clk
0:00:40.9]} 29... gxf5 {[%clk 0:00:42]} 30. exf5 {[%clk 0:00:38.9]} 30... Qxd5
{[%clk 0:00:40.8]} 31. Qxa4 {[%clk 0:00:34.9]} 31... Qxd3 {[%clk 0:00:31.4]} 32.
Rd1 {[%clk 0:00:30.4]} 32... Qxf5 {[%clk 0:00:31.8]} 33. Qb3+ {[%clk 0:00:27.4]}
33... Kh8 {[%clk 0:00:21.5]} 34. Rxd6 {[%clk 0:00:16.8]} 34... Rbd8 {[%clk
0:00:21.4]} 35. Rxd8 {[%clk 0:00:16.5]} 35... Rxd8 {[%clk 0:00:23.3]} 36. Qc4
{[%clk 0:00:14.6]} 36... Qf3 {[%clk 0:00:18.1]} 37. Qxc5 {[%clk 0:00:14]} 37...
Rd1+ {[%clk 0:00:18.4]} 38. Kh2 {[%clk 0:00:12.7]} 38... Rh1# {[%clk 0:00:19.1]}
0

[Event "Torneo Nuevo Centro. Jornada 11"]
[Site "Chess.com"]
[Date "2020.08.28"]
[Round "1"]
[White "Serrano Requena, Guillem"]
[Black "Pedros Viudes, Santiago"]
[Result "0-1"]
[WhiteElo "1315"]
[BlackElo "1932"]
[TimeControl "180+2"]
[EndTime "10:39:03 PDT"]
[Termination "Victoria de ElGatoKamsky por tiempo"]

1. d4 {[%clk 0:02:59.1]} 1... Nf6 {[%clk 0:03:00.3]} 2. Bg5 {[%clk 0:02:59.3]}
2... d5 {[%clk 0:03:00.5]} 3. Bxf6 {[%clk 0:02:58.5]} 3... gxf6 {[%clk
0:03:00.5]} 4. e3 {[%clk 0:02:59.1]} 4... c5 {[%clk 0:02:32.4]} 5. g3 {[%clk
0:02:56.2]} 5... Nc6 {[%clk 0:02:32.2]} 6. Bg2 {[%clk 0:02:55.5]} 6... Bf5
{[%clk 0:02:23]} 7. a3 {[%clk 0:02:49.3]} 7... Qa5+ {[%clk 0:02:15.9]} 8. c3
{[%clk 0:02:41.4]} 8... e6 {[%clk 0:02:07.1]} 9. Ne2 {[%clk 0:02:40.3]} 9... c4
{[%clk 0:01:56]} 10. Nd2 {[%clk 0:02:34]} 10... b5 {[%clk 0:01:55.4]} 11. O-O
{[%clk 0:02:33.9]} 11... h5 {[%clk 0:01:55]} 12. h4 {[%clk 0:02:28.8]} 12... Qa4
{[%clk 0:01:38.7]} 13. b3 {[%clk 0:02:00]} 13... cxb3 {[%clk 0:01:27.9]} 14.
Qxb3 {[%clk 0:01:59.6]} 14... Qxb3 {[%clk 0:01:27.2]} 15. Nxb3 {[%clk
0:01:59.2]} 15... Bd3 {[%clk 0:01:26.5]} 16. Rfe1 {[%clk 0:01:59.2]} 16... f5
{[%clk 0:01:09.3]} 17. Nf4 {[%clk 0:01:51.9]} 17... Bc4 {[%clk 0:01:07.8]} 18.
Nd2 {[%clk 0:01:52.1]} 18... Bd6 {[%clk 0:01:03]} 19. Nxc4 {[%clk 0:01:45.5]}
19... bxc4 {[%clk 0:01:04.9]} 20. Ne2 {[%clk 0:01:06.9]} 20... O-O-O {[%clk
0:00:58.4]} 21. Reb1 {[%clk 0:00:52.2]} 21... Kc7 {[%clk 0:00:56]} 22. a4 {[%clk
0:00:32.6]} 22... Rb8 {[%clk 0:00:54.4]} 23. Kh2 {[%clk 0:00:22.7]} 23... Na5
{[%clk 0:00:41.2]} 24. Nc1 {[%clk 0:00:19.4]} 24... Rxb1 {[%clk 0:00:21.1]} 25.
Rxb1 {[%clk 0:00:19.5]} 25... Nc6 {[%clk 0:00:20.4]} 26. Na2 {[%clk 0:00:15]}
26... Na5 {[%clk 0:00:20.2]} 27. Rb5 {[%clk 0:00:13.7]} 27... Nc6 {[%clk
0:00:19.5]} 28. a5 {[%clk 0:00:10.6]} 28... a6 {[%clk 0:00:17.8]} 29. Rb6 {[%clk
0:00:08.9]} 29... Ra8 {[%clk 0:00:19]} 30. f3 {[%clk 0:00:06.1]} 30... Nxa5
{[%clk 0:00:19.9]} 31. Rb1 {[%clk 0:00:06]} 31... Nb3 {[%clk 0:00:20.5]} 32. Nc1
{[%clk 0:00:06]} 32... Rb8 {[%clk 0:00:17.3]} 33. Rb2 {[%clk 0:00:05.1]} 33...
Nxc1 {[%clk 0:00:17.5]} 34. Rxb8 {[%clk 0:00:05.2]} 34... Kxb8 {[%clk
0:00:18.1]} 35. Bf1 {[%clk 0:00:05.7]} 35... a5 {[%clk 0:00:18.5]} 0

[Event "Torneo Nuevo Centro. Jornada 11"]
[Site "Chess.com"]
[Date "2020.08.28"]
[Round "1"]
[White "Garcia, Jhoel"]
[Black "Beneyto de Ramon, Guillermo"]
[Result "1-0"]
[WhiteElo "2382"]
[BlackElo "1638"]
[TimeControl "180+2"]
[EndTime "10:39:31 PDT"]
[Termination "Victoria de shoels por tiempo"]

1. Nc3 {[%clk 0:03:00.9]} 1... d5 {[%clk 0:02:51.3]} 2. d4 {[%clk 0:03:01.1]}
2... e6 {[%clk 0:02:50.9]} 3. e4 {[%clk 0:03:02.1]} 3... c6 {[%clk 0:02:50.6]}
4. Nf3 {[%clk 0:03:02.2]} 4... dxe4 {[%clk 0:02:47.5]} 5. Nxe4 {[%clk
0:03:01.5]} 5... f5 {[%clk 0:02:48.6]} 6. Nc3 {[%clk 0:02:57.3]} 6... Nf6 {[%clk
0:02:49.5]} 7. Bd3 {[%clk 0:02:55.4]} 7... Bb4 {[%clk 0:02:48.7]} 8. Bd2 {[%clk
0:02:55.6]} 8... O-O {[%clk 0:02:47.9]} 9. Qe2 {[%clk 0:02:54.2]} 9... Kh8
{[%clk 0:02:42.8]} 10. O-O-O {[%clk 0:02:54.8]} 10... Nbd7 {[%clk 0:02:38.5]}
11. a3 {[%clk 0:02:54.4]} 11... Bxc3 {[%clk 0:02:38]} 12. Bxc3 {[%clk
0:02:54.7]} 12... b5 {[%clk 0:02:38]} 13. Ne5 {[%clk 0:02:52]} 13... Nxe5 {[%clk
0:02:35.3]} 14. dxe5 {[%clk 0:02:52.7]} 14... Nd5 {[%clk 0:02:35]} 15. Bd2
{[%clk 0:02:53.8]} 15... a5 {[%clk 0:02:31.9]} 16. Kb1 {[%clk 0:02:48.7]} 16...
b4 {[%clk 0:02:32.1]} 17. a4 {[%clk 0:02:49.5]} 17... Rb8 {[%clk 0:02:24.5]} 18.
Bc4 {[%clk 0:02:46.2]} 18... Qc7 {[%clk 0:01:50.5]} 19. h3 {[%clk 0:01:44.1]}
19... Bd7 {[%clk 0:01:49.4]} 20. Bb3 {[%clk 0:01:37.8]} 20... c5 {[%clk
0:01:42.7]} 21. Bxd5 {[%clk 0:01:31.1]} 21... exd5 {[%clk 0:01:43]} 22. e6
{[%clk 0:01:32.6]} 22... Rfe8 {[%clk 0:01:41.2]} 23. Qf3 {[%clk 0:01:33.1]}
23... Bxe6 {[%clk 0:01:34.8]} 24. Bf4 {[%clk 0:01:34.4]} 24... Qc6 {[%clk
0:01:22.4]} 25. Bxb8 {[%clk 0:01:34.4]} 25... Rxb8 {[%clk 0:01:24.3]} 26. Rhe1
{[%clk 0:01:30.7]} 26... c4 {[%clk 0:01:10.3]} 27. b3 {[%clk 0:01:21.7]} 27...
cxb3 {[%clk 0:01:06.8]} 28. cxb3 {[%clk 0:01:22.5]} 28... Rc8 {[%clk 0:00:55.7]}
29. Rc1 {[%clk 0:01:19.9]} 29... Qd7 {[%clk 0:00:44.9]} 30. Rxc8+ {[%clk
0:01:16.7]} 30... Qxc8 {[%clk 0:00:46.8]} 31. Rc1 {[%clk 0:01:18]} 31... Qf8
{[%clk 0:00:27.8]} 32. Qe3 {[%clk 0:01:11.7]} 32... Bd7 {[%clk 0:00:25.5]} 33.
Rc7 {[%clk 0:01:10.2]} 33... f4 {[%clk 0:00:20.7]} 34. Qe5 {[%clk 0:01:07.5]}
34... Bf5+ {[%clk 0:00:18.2]} 35. Kb2 {[%clk 0:01:07.6]} 35... h6 {[%clk
0:00:15.1]} 36. Rb7 {[%clk 0:01:05.4]} 36... Kh7 {[%clk 0:00:14.9]} 37. Rc7
{[%clk 0:01:04.8]} 37... Bg6 {[%clk 0:00:13.3]} 38. Rc5 {[%clk 0:00:53.9]} 38...
Be4 {[%clk 0:00:10.7]} 39. Rc2 {[%clk 0:00:55.8]} 39... Bxc2 {[%clk 0:00:10.9]}
40. Kxc2 {[%clk 0:00:57.1]} 40... Qc8+ {[%clk 0:00:11.3]} 41. Kd2 {[%clk
0:00:58]} 41... f3 {[%clk 0:00:09.7]} 42. gxf3 {[%clk 0:00:55.8]} 42... Qd8
{[%clk 0:00:08.9]} 43. Qf5+ {[%clk 0:00:55.5]} 43... g6 {[%clk 0:00:07.9]} 44.
Qf7+ {[%clk 0:00:54.9]} 44... Kh8 {[%clk 0:00:09]} 45. Qxg6 {[%clk 0:00:56.3]}
45... Qc8 {[%clk 0:00:03.2]} 46. Qxh6+ {[%clk 0:00:56.3]} 46... Kg8 {[%clk
0:00:04.2]} 47. Qg5+ {[%clk 0:00:57.7]} 47... Kh8 {[%clk 0:00:04.1]} 48. Qh4+
{[%clk 0:00:58.3]} 48... Kg7 {[%clk 0:00:03.9]} 49. Qg4+ {[%clk 0:01:00.2]}
49... Qxg4 {[%clk 0:00:02.6]} 50. fxg4 {[%clk 0:01:01.7]} 1

[Event "Torneo Nuevo Centro. Jornada 11"]
[Site "Chess.com"]
[Date "2020.08.28"]
[Round "1"]
[White "Chofre Murcia, Adrián"]
[Black "Kovacevic, Slobodan"]
[Result "1-0"]
[WhiteElo "1640"]
[BlackElo "2259"]
[TimeControl "180+2"]
[EndTime "10:39:31 PDT"]
[Termination "Victoria de Kelorian por tiempo"]

1. e4 {[%clk 0:03:00.5]} 1... c5 {[%clk 0:02:56.3]} 2. Nc3 {[%clk 0:03:01.2]}
2... e6 {[%clk 0:02:55.5]} 3. Nf3 {[%clk 0:03:00.7]} 3... a6 {[%clk 0:02:54.3]}
4. d3 {[%clk 0:02:59.5]} 4... b5 {[%clk 0:02:51.4]} 5. Be3 {[%clk 0:03:00]} 5...
d6 {[%clk 0:02:48.7]} 6. Be2 {[%clk 0:02:58.6]} 6... Bb7 {[%clk 0:02:47.3]} 7.
O-O {[%clk 0:02:57.1]} 7... Nd7 {[%clk 0:02:46.3]} 8. a3 {[%clk 0:02:53.5]} 8...
Ngf6 {[%clk 0:02:45.1]} 9. Qd2 {[%clk 0:02:52.1]} 9... Be7 {[%clk 0:02:43.7]}
10. Bg5 {[%clk 0:02:47.8]} 10... O-O {[%clk 0:02:42.8]} 11. h3 {[%clk
0:02:46.6]} 11... Rc8 {[%clk 0:02:22.2]} 12. Nd1 {[%clk 0:02:41.4]} 12... Qc7
{[%clk 0:01:35.1]} 13. c3 {[%clk 0:02:38.7]} 13... Rfe8 {[%clk 0:01:33.4]} 14.
Bxf6 {[%clk 0:02:28.2]} 14... Bxf6 {[%clk 0:01:28.6]} 15. Ne3 {[%clk 0:02:29]}
15... Ne5 {[%clk 0:01:15.6]} 16. Nxe5 {[%clk 0:02:25]} 16... dxe5 {[%clk
0:01:15]} 17. Ng4 {[%clk 0:02:20.2]} 17... Be7 {[%clk 0:01:13.7]} 18. Rad1
{[%clk 0:02:19.4]} 18... Red8 {[%clk 0:01:11.7]} 19. Qe3 {[%clk 0:02:16.1]}
19... h6 {[%clk 0:01:08.5]} 20. Qg3 {[%clk 0:02:07.4]} 20... Kh7 {[%clk
0:00:52.6]} 21. Ne3 {[%clk 0:01:26.3]} 21... g6 {[%clk 0:00:47.9]} 22. Qf3
{[%clk 0:01:21.8]} 22... Kg7 {[%clk 0:00:45.5]} 23. Ng4 {[%clk 0:01:18.4]} 23...
h5 {[%clk 0:00:43.6]} 24. Ne3 {[%clk 0:01:16.1]} 24... Bg5 {[%clk 0:00:42.1]}
25. Qg3 {[%clk 0:01:12.5]} 25... Bf4 {[%clk 0:00:38.4]} 26. Qf3 {[%clk 0:01:11]}
26... f5 {[%clk 0:00:35.7]} 27. g3 {[%clk 0:01:01.5]} 27... Bh6 {[%clk 0:00:34]}
28. Ng2 {[%clk 0:00:58.9]} 28... Rf8 {[%clk 0:00:31.1]} 29. g4 {[%clk
0:00:47.5]} 29... hxg4 {[%clk 0:00:21.3]} 30. hxg4 {[%clk 0:00:44.5]} 30... fxe4
{[%clk 0:00:20.2]} 31. Qg3 {[%clk 0:00:42.9]} 31... Bf4 {[%clk 0:00:19.1]} 32.
Qh3 {[%clk 0:00:42.1]} 32... Rh8 {[%clk 0:00:17.5]} 33. Nh4 {[%clk 0:00:39]}
33... g5 {[%clk 0:00:16.4]} 34. Qg2 {[%clk 0:00:16]} 34... Rxh4 {[%clk
0:00:08.7]} 35. dxe4 {[%clk 0:00:15.5]} 35... Rch8 {[%clk 0:00:08.8]} 36. Bf3
{[%clk 0:00:13]} 36... Rh2 {[%clk 0:00:07.8]} 37. Qxh2 {[%clk 0:00:09.5]} 37...
Rxh2 {[%clk 0:00:04.5]} 38. Bg2 {[%clk 0:00:10.1]} 38... Kf6 {[%clk 0:00:04.1]}
39. f3 {[%clk 0:00:11]} 39... Bc6 {[%clk 0:00:03.6]} 40. Rf2 {[%clk 0:00:12]}
40... c4 {[%clk 0:00:03.6]} 41. Rfd2 {[%clk 0:00:12.8]} 41... Qb6+ {[%clk
0:00:03.1]} 42. Kf1 {[%clk 0:00:12.3]} 42... Bxd2 {[%clk 0:00:03]} 43. Rxd2
{[%clk 0:00:12.9]} 1

[Event "Torneo Nuevo Centro. Jornada 11"]
[Site "Chess.com"]
[Date "2020.08.28"]
[Round "1"]
[White "Perez Garcia, Jose Miguel"]
[Black "Yatseta Fernandez, Marc Kazymyr"]
[Result "0-1"]
[WhiteElo "2045"]
[BlackElo "1516"]
[TimeControl "180+2"]
[EndTime "10:39:37 PDT"]
[Termination "Victoria de K_73 por abandono"]

1. e4 {[%clk 0:02:59.2]} 1... e5 {[%clk 0:02:59.5]} 2. Nf3 {[%clk 0:02:59.4]}
2... Nc6 {[%clk 0:03:00.2]} 3. d4 {[%clk 0:02:49.5]} 3... exd4 {[%clk
0:02:58.7]} 4. Bc4 {[%clk 0:02:46.3]} 4... Nf6 {[%clk 0:02:38.6]} 5. O-O {[%clk
0:02:44.2]} 5... Nxe4 {[%clk 0:02:32.2]} 6. Re1 {[%clk 0:02:43.4]} 6... d5
{[%clk 0:02:32.9]} 7. Bxd5 {[%clk 0:02:43.2]} 7... Qxd5 {[%clk 0:02:33.4]} 8.
Nc3 {[%clk 0:02:44.5]} 8... Qa5 {[%clk 0:02:24.7]} 9. Nxe4 {[%clk 0:02:41.6]}
9... Be6 {[%clk 0:02:22.5]} 10. Bd2 {[%clk 0:02:40.3]} 10... Bb4 {[%clk
0:02:15.6]} 11. c3 {[%clk 0:02:35]} 11... dxc3 {[%clk 0:01:59]} 12. bxc3 {[%clk
0:02:36.9]} 12... Be7 {[%clk 0:01:52.8]} 13. Neg5 {[%clk 0:02:36.9]} 13... O-O-O
{[%clk 0:01:33.2]} 14. Nxe6 {[%clk 0:02:32]} 14... fxe6 {[%clk 0:01:32.1]} 15.
Qe2 {[%clk 0:02:33]} 15... e5 {[%clk 0:01:24.1]} 16. c4 {[%clk 0:02:30.2]} 16...
Qc5 {[%clk 0:01:14.4]} 17. Bc3 {[%clk 0:02:26.2]} 17... Bf6 {[%clk 0:01:10.3]}
18. Nxe5 {[%clk 0:02:24.3]} 18... Nxe5 {[%clk 0:01:07.6]} 19. Bxe5 {[%clk
0:02:26.2]} 19... Rhe8 {[%clk 0:01:01.5]} 20. Qg4+ {[%clk 0:02:25.9]} 20... Kb8
{[%clk 0:00:59.3]} 21. Bxf6 {[%clk 0:02:26.7]} 21... gxf6 {[%clk 0:00:57.3]} 22.
Rab1 {[%clk 0:02:22.4]} 22... Qa3 {[%clk 0:00:45.8]} 23. Rxe8 {[%clk 0:02:09.4]}
23... Rxe8 {[%clk 0:00:46.1]} 24. g3 {[%clk 0:02:09.1]} 24... Qxa2 {[%clk
0:00:45.7]} 25. Rd1 {[%clk 0:02:04.7]} 25... a6 {[%clk 0:00:41.6]} 26. Kg2
{[%clk 0:02:04.5]} 26... Qe2 {[%clk 0:00:37]} 27. Qxe2 {[%clk 0:02:03.8]} 27...
Rxe2 {[%clk 0:00:37]} 28. Rd8+ {[%clk 0:02:05.7]} 28... Ka7 {[%clk 0:00:37.5]}
29. Rd7 {[%clk 0:02:07.2]} 29... h5 {[%clk 0:00:27.1]} 30. Rxc7 {[%clk
0:02:05.4]} 30... Kb6 {[%clk 0:00:26.7]} 31. Rc8 {[%clk 0:02:06.3]} 31... a5
{[%clk 0:00:17.9]} 32. Rf8 {[%clk 0:02:06.3]} 32... Re6 {[%clk 0:00:16.3]} 33.
Rc8 {[%clk 0:02:05.8]} 33... a4 {[%clk 0:00:16.4]} 34. Ra8 {[%clk 0:02:06]}
34... Kc5 {[%clk 0:00:12.7]} 35. Rxa4 {[%clk 0:02:06.5]} 35... Ra6 {[%clk
0:00:12.7]} 36. Rxa6 {[%clk 0:02:03.9]} 36... bxa6 {[%clk 0:00:14.6]} 37. Kf1
{[%clk 0:02:05.6]} 37... Kxc4 {[%clk 0:00:15.3]} 38. Ke1 {[%clk 0:02:04.8]}
38... Kb3 {[%clk 0:00:16.3]} 39. f3 {[%clk 0:02:03]} 39... a5 {[%clk 0:00:16.1]}
40. g4 {[%clk 0:02:04.9]} 40... a4 {[%clk 0:00:17.1]} 41. gxh5 {[%clk 0:02:05]}
41... a3 {[%clk 0:00:15.5]} 42. Kf2 {[%clk 0:02:04]} 42... a2 {[%clk 0:00:16.8]}
43. Kg3 {[%clk 0:02:05.9]} 43... a1=Q {[%clk 0:00:17.6]} 44. Kh4 {[%clk
0:02:07.8]} 44... Qd4+ {[%clk 0:00:18.2]} 45. Kg3 {[%clk 0:02:07.6]} 45... Qe5+
{[%clk 0:00:18.4]} 46. Kg4 {[%clk 0:02:08.4]} 46... Qg5+ {[%clk 0:00:19.6]} 47.
Kh3 {[%clk 0:02:10.3]} 47... Qxh5+ {[%clk 0:00:20.9]} 48. Kg3 {[%clk 0:02:12.2]}
48... Qg5+ {[%clk 0:00:22.1]} 49. Kf2 {[%clk 0:02:13.1]} 49... Kc3 {[%clk
0:00:23.1]} 50. f4 {[%clk 0:02:11.9]} 50... Qxf4+ {[%clk 0:00:23.2]} 0

[Event "Torneo Nuevo Centro. Jornada 11"]
[Site "Chess.com"]
[Date "2020.08.28"]
[Round "2"]
[White "Gukasov, Artem"]
[Black "Fitzpatrick Dimas, Kevin"]
[Result "1-0"]
[WhiteElo "1463"]
[BlackElo "843"]
[TimeControl "180+2"]
[EndTime "10:43:29 PDT"]
[Termination "Victoria de ArtemGukasov por abandono"]

1. e4 {[%clk 0:03:01.9]} 1... e5 {[%clk 0:02:59.2]} 2. Nf3 {[%clk 0:03:01.6]}
2... Nc6 {[%clk 0:02:59]} 3. Bc4 {[%clk 0:03:00.8]} 3... Bc5 {[%clk 0:02:56.6]}
4. Nc3 {[%clk 0:02:58.6]} 4... d6 {[%clk 0:02:52.9]} 5. d3 {[%clk 0:02:58.5]}
5... Bg4 {[%clk 0:02:52.3]} 6. h3 {[%clk 0:02:58.2]} 6... Bxf3 {[%clk
0:02:52.8]} 7. Qxf3 {[%clk 0:02:58.7]} 7... Nf6 {[%clk 0:02:54.2]} 8. g4 {[%clk
0:02:57.1]} 8... O-O {[%clk 0:02:52.9]} 9. Bg5 {[%clk 0:02:55]} 9... Nd4 {[%clk
0:02:49.3]} 10. Qd1 {[%clk 0:02:51.1]} 10... h6 {[%clk 0:02:40.3]} 11. Bh4
{[%clk 0:02:50.2]} 11... g5 {[%clk 0:02:39.3]} 12. Bg3 {[%clk 0:02:51]} 12...
Re8 {[%clk 0:02:32.7]} 13. Nb5 {[%clk 0:02:51.3]} 13... c6 {[%clk 0:02:30.3]}
14. Nxd4 {[%clk 0:02:51.8]} 14... exd4 {[%clk 0:02:27.4]} 15. O-O {[%clk
0:02:42.1]} 15... d5 {[%clk 0:02:18.2]} 16. exd5 {[%clk 0:02:40.8]} 16... cxd5
{[%clk 0:02:17.9]} 17. Bb3 {[%clk 0:02:41.5]} 17... Bb4 {[%clk 0:01:57.5]} 18.
Qf3 {[%clk 0:02:32.8]} 18... Re6 {[%clk 0:01:52.2]} 19. h4 {[%clk 0:02:28.4]}
19... gxh4 {[%clk 0:01:51.5]} 20. Bxh4 {[%clk 0:02:29.3]} 20... Ne4 {[%clk
0:01:44.4]} 21. Bxd8 {[%clk 0:02:17.6]} 1

[Event "Torneo Nuevo Centro. Jornada 11"]
[Site "Chess.com"]
[Date "2020.08.28"]
[Round "2"]
[White "Fernández Martin, Carlos"]
[Black "Miranda Calvo, Max Rodrigo"]
[Result "1-0"]
[WhiteElo "1777"]
[BlackElo "1301"]
[TimeControl "180+2"]
[EndTime "10:43:32 PDT"]
[Termination "Victoria de Pistachomortal por abandono"]

1. e4 {[%clk 0:03:01.9]} 1... e5 {[%clk 0:03:00.5]} 2. Nf3 {[%clk 0:03:01.1]}
2... Nc6 {[%clk 0:03:00.7]} 3. Bb5 {[%clk 0:03:01]} 3... Nd4 {[%clk 0:02:59.4]}
4. Nxd4 {[%clk 0:02:44.4]} 4... exd4 {[%clk 0:02:58.3]} 5. O-O {[%clk
0:02:44.9]} 5... c6 {[%clk 0:02:59.3]} 6. Ba4 {[%clk 0:02:42]} 6... Bc5 {[%clk
0:02:57.5]} 7. Bb3 {[%clk 0:02:39.4]} 7... Ne7 {[%clk 0:02:55.1]} 8. Qh5 {[%clk
0:02:38.6]} 8... O-O {[%clk 0:02:54.8]} 9. Qxc5 {[%clk 0:02:38.7]} 9... d6
{[%clk 0:02:53.2]} 10. Qxd4 {[%clk 0:02:38.9]} 10... c5 {[%clk 0:02:46]} 11. Qe3
{[%clk 0:02:36.7]} 11... Qb6 {[%clk 0:02:38]} 12. Nc3 {[%clk 0:02:36.2]} 12...
Bd7 {[%clk 0:02:33.7]} 13. d3 {[%clk 0:02:35.1]} 13... Qc7 {[%clk 0:02:08.2]}
14. Nd5 {[%clk 0:02:35.3]} 14... Nxd5 {[%clk 0:02:07.7]} 15. Bxd5 {[%clk
0:02:35.6]} 15... Rac8 {[%clk 0:02:05.3]} 16. b3 {[%clk 0:02:31.5]} 16... b6
{[%clk 0:02:05.6]} 17. Bb2 {[%clk 0:02:31.6]} 17... Be6 {[%clk 0:01:58.5]} 18.
Qg3 {[%clk 0:02:30.6]} 18... g6 {[%clk 0:01:48.2]} 19. Qh4 {[%clk 0:02:23]}
19... h5 {[%clk 0:01:48.4]} 20. Qf6 {[%clk 0:02:22]} 20... Bxd5 {[%clk
0:01:35.3]} 1

[Event "Torneo Nuevo Centro. Jornada 11"]
[Site "Chess.com"]
[Date "2020.08.28"]
[Round "2"]
[White "Pardo Ruiz, Carlos"]
[Black "Ainsa Jimenez, Lucas"]
[Result "1-0"]
[WhiteElo "1691"]
[BlackElo "1187"]
[TimeControl "180+2"]
[EndTime "10:43:38 PDT"]
[Termination "Victoria de Carlitoscarlsen por jaque mate"]

1. e4 {[%clk 0:03:01.9]} 1... e5 {[%clk 0:02:58.7]} 2. Nf3 {[%clk 0:03:01.5]}
2... Nc6 {[%clk 0:02:57.1]} 3. Bc4 {[%clk 0:02:59.6]} 3... Bc5 {[%clk
0:02:57.5]} 4. c3 {[%clk 0:02:59.9]} 4... Nf6 {[%clk 0:02:51.3]} 5. d4 {[%clk
0:02:58.3]} 5... exd4 {[%clk 0:02:51.9]} 6. cxd4 {[%clk 0:03:00.2]} 6... Bb4+
{[%clk 0:02:51.7]} 7. Bd2 {[%clk 0:03:01.1]} 7... Bxd2+ {[%clk 0:02:51.6]} 8.
Nbxd2 {[%clk 0:03:03]} 8... O-O {[%clk 0:02:48.2]} 9. O-O {[%clk 0:03:02.9]}
9... Na5 {[%clk 0:02:47.1]} 10. Bb3 {[%clk 0:03:00.7]} 10... Nxb3 {[%clk
0:02:47.3]} 11. Qxb3 {[%clk 0:03:02.6]} 11... c6 {[%clk 0:02:46.2]} 12. Rfe1
{[%clk 0:02:57.5]} 12... d5 {[%clk 0:02:46.9]} 13. e5 {[%clk 0:02:58.1]} 13...
Nd7 {[%clk 0:02:42.6]} 14. Qe3 {[%clk 0:02:49.5]} 14... Nb6 {[%clk 0:02:42.3]}
15. b3 {[%clk 0:02:48.4]} 15... Re8 {[%clk 0:02:41.1]} 16. Qf4 {[%clk 0:02:48]}
16... Qc7 {[%clk 0:02:14.8]} 17. Qg3 {[%clk 0:02:43]} 17... f6 {[%clk 0:02:04]}
18. exf6 {[%clk 0:02:38.9]} 18... Rxe1+ {[%clk 0:01:54.8]} 19. Rxe1 {[%clk
0:02:37.9]} 19... Qf7 {[%clk 0:01:39.8]} 20. Re8+ {[%clk 0:02:27.7]} 20... Qf8
{[%clk 0:01:25.3]} 21. Qxg7# {[%clk 0:02:26.5]} 1

[Event "Torneo Nuevo Centro. Jornada 11"]
[Site "Chess.com"]
[Date "2020.08.28"]
[Round "2"]
[White "Blanco Solaz, Ramón"]
[Black "Fente Fernandez, Jose Ignacio"]
[Result "0-1"]
[WhiteElo "1969"]
[BlackElo "1568"]
[TimeControl "180+2"]
[EndTime "10:43:58 PDT"]
[Termination "Victoria de SrFente por abandono"]

1. e4 {[%clk 0:03:01.9]} 1... c5 {[%clk 0:02:59.4]} 2. d4 {[%clk 0:03:02.5]}
2... cxd4 {[%clk 0:03:00.1]} 3. c3 {[%clk 0:03:04.1]} 3... dxc3 {[%clk
0:03:00.7]} 4. Nxc3 {[%clk 0:03:06]} 4... Nc6 {[%clk 0:03:01.9]} 5. Bc4 {[%clk
0:03:07.6]} 5... Nf6 {[%clk 0:03:00.7]} 6. Nf3 {[%clk 0:03:08.9]} 6... d6 {[%clk
0:02:58.1]} 7. O-O {[%clk 0:03:10.3]} 7... e6 {[%clk 0:02:58]} 8. Qe2 {[%clk
0:03:09.9]} 8... Be7 {[%clk 0:02:54.2]} 9. Rd1 {[%clk 0:03:11.3]} 9... e5 {[%clk
0:02:29.7]} 10. b4 {[%clk 0:02:49.4]} 10... a6 {[%clk 0:02:15.5]} 11. a4 {[%clk
0:02:48.8]} 11... Be6 {[%clk 0:02:11.7]} 12. b5 {[%clk 0:02:47.4]} 12... Na5
{[%clk 0:01:45.9]} 13. Bxe6 {[%clk 0:02:45.7]} 13... fxe6 {[%clk 0:01:44.4]} 14.
Nxe5 {[%clk 0:02:47.3]} 14... Qc7 {[%clk 0:01:32.7]} 15. Qh5+ {[%clk 0:02:47.7]}
15... Nxh5 {[%clk 0:01:32.1]} 16. Nd3 {[%clk 0:02:18.3]} 16... Qxc3 {[%clk
0:01:02]} 17. Bb2 {[%clk 0:02:19.8]} 17... Qb3 {[%clk 0:01:02.5]} 18. Ra3 {[%clk
0:02:17.7]} 18... Qxd1+ {[%clk 0:01:01.3]} 0